Cogmind - Beta 17 @@@ ROGUE MODE // 2026.07.15 @ 19:32:23 Player: shapeshifter Result: Destroyed by S-10 Pest with Light Assault Rifle Performance ------------- Evolutions (0) 0 Regions Visited (2) 400 Robots Destroyed (20) 100 Value Destroyed (326) 326 Prototype IDs (15) 300 Alien Tech Used (0) 0 Bonus (7134) 7134 TOTAL SCORE: 8260 Bonus ------- Follower Combat Kills 50 Prayed to X0-1V1 5000 Major X0-1V1 Interference 2100 Friendly Fire -16 Cogmind --------- Core Integrity 0/150 Matter 901/1000 Energy 1000/1000 System Corruption 8% Temperature Cool (0) Movement Rolling (105) Ox1 Location -10/Subcaves Parts ------- > --- POWER (2) -------- Subdweller Power Source > --- PROPULSION (3) --- Armored Wheel Subdweller Monowheel > --- UTILITY (2) ------ Small Storage Unit Structural Scanner (fused) > --- WEAPON (1) ------- Subdweller Machine Gun > --- INVENTORY (9) ---- Compact Matter Pod (42) Structural Scanner Makeshift Targeting Computer Hacking Suite Self-contained Transmogrifier Power Bank Light Cannon Subdweller Shrapnel Launcher Scythe Peak State ------------ > --- POWER ------------ Ion Engine > --- PROPULSION ------- Light Treads Light Treads > --- UTILITY ---------- Small Storage Unit X0-1V1's Piety Tracker > --- WEAPON ----------- Heavy Assault Rifle Heavy Assault Rifle > --- INVENTORY -------- Structural Scanner Structural Scanner Improved Targeting Computer Improved Targeting Computer Hacking Suite Heavy Assault Rifle Heavy Assault Rifle Light Cannon [Rating: 22] Favorites ----------- Power Ion Engine Engine Ion Engine Propulsion Light Treads Treads Light Treads Wheel Armored Wheel Utility Small Storage Unit Device Structural Scanner Storage Small Storage Unit Processor Improved Targeting Computer Weapon Heavy Assault Rifle Energy Gun Medium Laser Ballistic Gun Heavy Assault Rifle Build | -11 -10 -10 ------- Run | Yrd Mat Sub Slots Evolved . | . . . Power . | . . . Propulsion . | . . . Utility . | . . . Weapon . | . . . Parts Attached 17 | 7 5 5 Power 2 | 1 . 1 Engine 2 | 1 . 1 Core . | . . . Reactor . | . . . Propulsion 3 | 2 . 1 Treads 2 | 2 . . Leg . | . . . Wheel 1 | . . 1 Hover . | . . . Flight . | . . . Utility 5 | 2 2 1 Device 3 | 1 1 1 Storage 1 | 1 . . Processor 1 | . 1 . Hackware . | . . . Protection . | . . . Artifact . | . . . Weapon 7 | 2 3 2 Energy Gun 3 | 2 1 . Energy Cannon . | . . . Ballistic Gun 4 | . 2 2 Ballistic Cannon . | . . . Launcher . | . . . Special Weapon . | . . . Impact Weapon . | . . . Slashing Weapon . | . . . Piercing Weapon . | . . . Special Melee Weapon . | . . . Unidentified Prototypes 1 | . 1 . Parts Lost 3 | . . 3 Power . | . . . Propulsion 3 | . . 3 Utility . | . . . Weapon . | . . . Highest Loss Streak 1 | . . 1 To Critical Strikes . | . . . Average Backups 7 | 2 6 8 Power . | . . . Propulsion . | . . . Utility 3 | . 3 3 Weapon 3 | . 2 3 Tool/Special . | . . . Unused Backups 19 | . 2 17 Power 1 | . 1 . Propulsion . | . . . Utility 8 | . . 8 Weapon 9 | . 1 8 Tool/Special 1 | . . 1 Average Slot Usage (%) 92 | . 99 82 Engine 12 | . 14 10 Treads 20 | . 28 11 Wheel 10 | . . 22 Device 9 | . 6 12 Storage 13 | . 14 12 Processor 3 | . 7 . Energy Gun 3 | . 6 . Ballistic Gun 17 | . 21 12 Peak Build Rating 22 | 7 22 22 Average Rating 12 | 4 12 13 On Entrance 9 | . 7 22 Avg Prop Armor Cover (%) 10 | . . 10 Naked Turns . | . . . Heaviest Build 17 | 14 17 17 Greatest Support 40 | 40 40 40 Greatest Overweight (x) . | . . . Average Overweight (x) . | . . . Largest Inventory Capacity 9 | 8 8 9 Average Capacity 8 | 7 8 8 Most Carried 9 | 5 8 9 Average Carried 7 | 2 6 8 Final Capacity 9 | 8 8 9 Final Carried 9 | 2 8 9 Class Distribution -------------------- 100% | Mutant Dominant Class ---------------- Mutant | -10/Materials Mutant | -10/Subcaves Resources | -11 -10 -10 ----------- Run | Yrd Mat Sub Matter Collected 1237 | 260 74 903 Remotely . | . . . Salvage Created 542 | 100 204 238 Parts 38 | 4 12 22 Haulers Intercepted . | . . . Recyclers Shooed 1 | . 1 . Parts Field Recycled . | . . . Retrieved Matter . | . . . Parts Self-Destructed 44 | . . 44 Prevented . | . . . Parts Restored . | . . . Kills | -11 -10 -10 ------- Run | Yrd Mat Sub Combat Hostiles Destroyed 15 | . 4 11 Guns 15 | . 4 11 Classes Destroyed 6 | 2 3 1 Tunneler 2 | 1 1 . Recycler 2 | 1 1 . Operator 1 | . 1 . Swarmer 11 | . 3 8 Grunt 2 | . 1 1 Subdweller 2 | . . 2 Best Kill Streak 4 | 2 4 2 Combat Bots Only 3 | . 3 2 Max Kills in Single Turn 2 | 1 2 1 Gunslinging . | . . . Exploded . | . . . Melee . | . . . Uniques/NPCs Destroyed . | . . . Combat | -11 -10 -10 -------- Run | Yrd Mat Sub Hostile Shots Fired 130 | . 28 102 Missed 35 | . 8 27 Hits 95 | . 20 75 Projectile 95 | . 20 75 AOE 2 | . . 2 Critical Strikes 1 | . 1 . Damage Taken 1036 | . 194 842 Core 185 | . . 185 Absorbed by Shields . | . . . Core Remaining (%) 100 | 100 . . Volleys Fired 93 | 3 13 77 Largest 2 | 2 2 2 Hottest 90 | 90 90 46 Shots Fired 110 | 6 26 78 Gun 110 | 6 26 78 Cannon . | . . . Launcher . | . . . Special . | . . . Kinetic 98 | . 20 78 Thermal 12 | 6 6 . Explosive . | . . . Electromagnetic . | . . . Robot Hit Streak 11 | 2 11 7 Robot Miss Streak 5 | 2 2 5 Penetration Max . | . . . Secondary Targets 3 | . 3 . Max Gunslinging Chain 1 | . 1 . Shots Hit Robots 56 | 3 18 35 Core Hits 26 | 3 9 14 Critical Kills . | . . . Critical Parts Destroyed 1 | . 1 . Critical Strikes 1 | . 1 . Destroy 1 | . 1 . Melee Attacks . | . . . Impact . | . . . Slashing . | . . . Piercing . | . . . Sneak Attacks . | . . . Combat Hostiles . | . . . Follow-up Attacks . | . . . Damage Inflicted 1008 | 34 293 681 Guns 1008 | 34 293 681 Cannons . | . . . Explosions . | . . . Melee . | . . . Ramming . | . . . Kinetic 903 | . 222 681 Thermal 105 | 34 71 . Explosive . | . . . Electromagnetic . | . . . Impact . | . . . Slashing . | . . . Piercing . | . . . Highest Corruption 19 | . . 19 Average Corruption 11 | . . 11 Corruption Purged . | . . . Corruption Blocked . | . . . Effects 6 | . . 6 Message Errors 1 | . . 1 Matter Fused 1 | . . 1 Heat Flow Errors 1 | . . 1 Energy Discharges 1 | . . 1 Data Loss (minor) 1 | . . 1 Weapon Failures 1 | . . 1 Overload Shots . | . . . Overflow Damage . | . . . Projectiles . | . . . Explosions . | . . . Melee . | . . . Knockbacks . | . . . Impact . | . . . Kinetic . | . . . Secondary . | . . . Self-Inflicted Damage . | . . . Shots . | . . . Rammed . | . . . Targets Rammed . | . . . Kicked . | . . . Crushed . | . . . Highest Temperature 172 | 60 90 172 Average Temperature 46 | 27 37 92 Received Heat Transfer 99 | . 57 42 Siege Activations . | . . . Martial Activations . | . . . Shielding Activations . | . . . Robots Disrupted . | . . . Combat Hostiles . | . . . Robots Corrupted . | . . . Combat Hostiles . | . . . Parts Fried . | . . . Impact Corruptions . | . . . Robots Melted . | . . . Combat Hostiles . | . . . Parts Melted . | . . . Heat Transferred 273 | 87 186 . Parts Sabotaged . | . . . Parts Stolen . | . . . Parts Stripped . | . . . Power Chain Reactions . | . . . Alert | -11 -10 -10 ------- Run | Yrd Mat Sub Maximum Alert Level . | . . . Low Security (%) 100 | 100 100 . Level 1 . | . . . Level 2 . | . . . Level 3 . | . . . Level 4 . | . . . Level 5 . | . . . High Security . | . . . Max Security . | . . . Peak Influence 75 | 5 75 . Initial . | . . . Average 9 | . 9 . Influence Increases 411 | 10 115 286 Destroy 0b10 Robot/C 280 | . 80 200 Destroy 0b10 Robot/NC 25 | 10 15 . Destroy Leader 30 | . 20 10 Allied During Kill 1 | . . 1 Lose Combat Pursuer 75 | . . 75 Influence Decreases 387 | 10 114 263 Entered New Map 1 | . . 1 Time Decay 316 | 10 114 192 Lost Part 20 | . . 20 Lost Ally 50 | . . 50 Squads Dispatched 2 | . 2 . Investigation . | . . . Extermination . | . . . Reinforcement 2 | . 2 . Assault . | . . . Garrison . | . . . Intercept . | . . . Searches Triggered . | . . . Construction Impeded . | . . . Haulers Reinforced . | . . . Active Scanning Responses . | . . . Cargo Convoy Interrupts . | . . . Stealth | -11 -10 -10 --------- Run | Yrd Mat Sub Distress Signals 1 | . 1 . Communications Jammed . | . . . Distress Signals . | . . . Times Spotted 36 | . 9 27 Peak Tracking Total 5 | . 3 5 Tactical Retreats 2 | . . 2 Traps | -11 -10 -10 ------- Run | Yrd Mat Sub Traps Triggered 1 | . . 1 Indirectly . | . . . Trap Hack Attempts . | . . . Triggered . | . . . Disarmed . | . . . Reprogrammed . | . . . Reused . | . . . Traps Extracted . | . . . Installed . | . . . Triggered . | . . . Machines | -11 -10 -10 ---------- Run | Yrd Mat Sub Machines Disabled 1 | . . 1 Max in Single Turn 1 | . . 1 Machines Repaired . | . . . Machines Dismantled . | . . . Machines Sabotaged . | . . . Overloaded Fab Kills . | . . . Hacking | -11 -10 -10 --------- Run | Yrd Mat Sub Machines Accessed 1 | . . 1 Terminals . | . . . Fabricators . | . . . Repair Stations . | . . . Recycling Units . | . . . Scanalyzers . | . . . Garrison Access . | . . . Total Hacks 1 | . . 1 Successful 1 | . . 1 Failed . | . . . Catastrophic . | . . . Database Lockouts . | . . . Manual 1 | . 1 . Terminals . | . . . Fabricators . | . . . Repair Stations . | . . . Recycling Units . | . . . Scanalyzers . | . . . Garrison Access . | . . . Terminal Hacks 1 | . . 1 Proto ID Catalog 1 | . . 1 Fabricator Hacks . | . . . Repair Station Hacks . | . . . Recycling Unit Hacks . | . . . Scanalyzer . | . . . Garrison Access Hacks . | . . . Unauthorized Hacks . | . . . Terminals . | . . . Fabricators . | . . . Repair Stations . | . . . Recycling Units . | . . . Scanalyzers . | . . . Garrison Access . | . . . Data Cores Recovered . | . . . Used . | . . . Hacking Detections . | . . . Full Trace Events . | . . . Feedback Events . | . . . Feedback Blocked . | . . . Robot Schematics Acquired . | . . . Robots Built . | . . . Authchips . | . . . Time . | . . . Total Robot Build Rating . | . . . Part Schematics Acquired . | . . . Parts Built . | . . . Authchips . | . . . Time . | . . . Total Part Build Rating . | . . . Part Studies Acquired . | . . . Parts Repaired . | . . . Time . | . . . Parts Recycled . | . . . Recycled Matter . | . . . Retrieved Matter . | . . . Retrieved Components . | . . . Parts Scanalyzed . | . . . Part Schematics Acquired . | . . . Parts Damaged . | . . . Bothacking | -11 -10 -10 ------------ Run | Yrd Mat Sub Used RIF Installer . | . . . Robots Hacked . | . . . Non-combat . | . . . Combat . | . . . Robot Hacks Applied . | . . . Relay Couplers Released . | . . . Fabnet Peak Effective % . | . . . Robots Rewired . | . . . Allies Hacked . | . . . Hacks Repelled . | . . . Allies | -11 -10 -10 -------- Run | Yrd Mat Sub Total Allies 5 | . . 5 Largest Group 5 | . . 5 Highest-Rated Group 25 | . . 25 Highest-Rated Ally 5 | . . 5 Total Orders . | . . . Ally Attacks 25 | . . 25 Total Damage 110 | . . 110 Kills 2 | . . 2 Allies Corrupted . | . . . Allies Melted . | . . . X0-1V1 Amusement Gains 3 | . 3 . Good Acts 26 | . 1 25 Bad Acts 24 | . . 24 Intel | -11 -10 -10 ------- Run | Yrd Mat Sub Active Infowar (turns) 1079 | 1 264 814 Structural 814 | . . 814 Seismic 265 | 1 264 . Robot Analysis Total . | . . . Derelict Logs Recovered . | . . . Drone Launches . | . . . Drone Recoveries . | . . . Exploration | -11 -10 -10 ------------- Run | Yrd Mat Sub Turns Passed 1966 | 94 1014 858 Spaces Moved 850 | 62 167 621 Core 26 | 26 . . Treads 291 | 36 167 88 Legs . | . . . Wheels 533 | . . 533 Hover . | . . . Flight . | . . . Fastest Speed 50 | 50 160 90 Average Speed 112 | 113 160 99 Slowest Speed 160 | 160 160 160 Overloaded Moves . | . . . Propulsion Burnouts . | . . . Robots Hopped . | . . . Potential Cave-ins . | . . . Cave-ins Triggered . | . . . Exploration Rate (%) 26 | 3 39 38 Regions Visited 2 Branch Regions 1 Pre-discovered Areas . | . . . Known Exits Taken . | . . . Unknown Exits Taken 2 | 1 1 . Scrap Searched 1 | . . 1 Spaces Dug 5 | . . 5 Terrain Destroyed 11 | . . 11 Melee . | . . . Projectile 11 | . . 11 AOE . | . . . Terrain Rammed . | . . . Walls Destroyed . | . . . Machines Disabled . | . . . Actions | -11 -10 -10 --------- Run | Yrd Mat Sub Total 1753 | 79 891 783 Wait 750 | . 688 62 Move 848 | 61 166 621 Hop . | . . . Pick Up 27 | 8 12 7 Fast Attach 4 | 1 1 2 Attach 11 | 6 4 1 Detach . | . . . Swap 2 | . . 2 Drop 18 | . 7 11 Fire 93 | 3 13 77 Melee . | . . . Ram . | . . . Kick . | . . . Crush . | . . . Escape Stasis . | . . . Rewire . | . . . Trap . | . . . Miscellaneous . | . . . Route ------- -11/Scrapyard -10/Materials (discovered 2 exits: [*Min] / *Sub) -10/Subcaves (discovered 4 exits: Mat x2 / Rec / [*Scr]) History --------- Turn | Location | Event 8 | -11/Scrapyard | Discovered new exit (range 15) 95 | -11/Scrapyard | Entered Materials 96 | -10/Materials | Met a group of wandering Federalists 210 | -10/Materials | Discovered new exit (range 13) 303 | -10/Materials | Build established: Mutant 404 | -10/Materials | Discovered new exit (range 8) 859 | -10/Materials | Prayed at D.C.S.S. Altar Unit 1104 | -10/Materials | Propulsion slot count permanently improved by X0-1V1 (+1) 1109 | -10/Materials | Entered Subcaves 1110 | -10/Subcaves | Continued accompanying wandering Federalists (4) 1140 | -10/Subcaves | Inventory capacity permanently improved by X0-1V1 (+1; -100 max core) 1151 | -10/Subcaves | X0-1V1 mutated your Weapon slot to Propulsion slot 1178 | -10/Subcaves | X0-1V1 sent hostile S-10 Pest (x5) 1204 | -10/Subcaves | Identified exit to Materials 1204 | -10/Subcaves | X0-1V1 revealed exit location to -8/Materials 1225 | -10/Subcaves | X0-1V1 activates XOMVISION 1250 | -10/Subcaves | System corruption reached 10% 1255 | -10/Subcaves | X0-1V1 sent hostile S-10 Pest (x5) 1295 | -10/Subcaves | Identified exit to Recycling 1295 | -10/Subcaves | X0-1V1 revealed exit location to -7/Recycling 1301 | -10/Subcaves | Lost 4 allies 1303 | -10/Subcaves | Core integrity restored by X0-1V1 (+33) 1317 | -10/Subcaves | Wandering Federalist uncovered a shortcut to Scraptown 1348 | -10/Subcaves | X0-1V1 revealed exit location to -8/Materials 1374 | -10/Subcaves | Ambushed by Subdweller buried in earth 1379 | -10/Subcaves | X0-1V1 sent allied S-10 Pest (x5) 1457 | -10/Subcaves | X0-1V1 mutated your Propulsion slot to Power slot 1474 | -10/Subcaves | X0-1V1 upgraded hostiles (x1) 1511 | -10/Subcaves | Lost 5 allies 1569 | -10/Subcaves | Visited 4L-MR0's lab 1576 | -10/Subcaves | Found Prototype Device 1579 | -10/Subcaves | Found Power Bank 1621 | -10/Subcaves | X0-1V1 sent hostile S-10 Pest (x3) 1921 | -10/Subcaves | X0-1V1 sent hostile S-10 Pest (x3) 1934 | -10/Subcaves | Core integrity fell below 50% 1960 | -10/Subcaves | Core integrity fell below 20% 1967 | -10/Subcaves | Destroyed by S-10 Pest with Light Assault Rifle Last Messages --------------- 01924_ X0-1V1: "The ol' switcheroo!" Form resolidifies at new position. S-10 Pest form resolidifies at new position. 01925_ X0-1V1 is intrigued. 01929_ Destroyed Flight Unit. 01941_ S-10 Pest destroyed. 01944_ Arm. Wheel destroyed. 01945_ System corrupted: Heat flow error (+173). 01945_ S-10 Pest destroyed. 01954_ Flight Unit fries itself beyond repair. 01957_ Lgt. Assault Rifle fries itself beyond repair. 01961_ Lgt. Ion Engine fries itself beyond repair. 01963_ Destroyed Lgt. Ion Engine. 01965_ System corrupted: Sub. Machine Gun jammed. 01967_ X0-1V1 bursts into laughter! Map ----- +----------------------------------------------------+ | ?????????????????????????????????????????????????? | | ?????????????????????????????????????????????????? | | ?????????????????????????????????????????????????? | | ?????????????????????????????????????????????????? | | ?????????????????????????????????????????????????? | | ?????????????????????????????????????????????????? | | ?????????????????????????????????????????????????? | | ?????????????????????????????????????????????????? | | ?????????????????????????????????????????????????? | | ?????????????????????????????????????????????????? | | ?????????????????????????????????????????????????? | | ?????????????????????????????????????????????????? | | ?????????????????????????????????????????????????? | | ?????????????????????????????????????????????????? | | ?????????????????????????????????????????????????? | | ?????????????????????????????????????????????????? | | ?????????????????????????????????????????????????? | | ????????????????????#####????????????????????????? | | ??????????????????#######????????????????????????? | | ?????????????????##### ######????????????????????? | | ????????????????#### ######????????????????????? | | ?????????????###### ### ##????????????????????? | | ???????????####### ##????????????????????? | | ??????????? # ## ##????????????????????? | | ???????????### % % ##????????????????????? | | ??????????? # ### s! @ ###??? ??????????????? | | ???????????###### # ####? ?????????????? | | ???????????########## ### ##???????????? | | ???????????????######## ## ##???????????? | | ???????????????????##### ###???????????? | | ?????????????#####??#### ####??????????? | | ????????????#######?### ##??????????? | | ????????????### ##### ##??????????? | | ????????????## ##### ### ????????????? | | ###?????????## ##### ### ???????????? | | #####???????### ## #### ###?? ###???????????? | | ####???????####### ## ####?? ###???????????? | | ##??###??????### ####???###????????????? | | #############?### ###???????????????????? | | ###### ########## ####??????????????????? | | # ### ########## ###??????????????????? | | ##### ###### ## ##??????????????????? | | ## #### ### ### ??????????????????? | | ### #### ## ## ??????????????????? | | #### ## ?### ##????????????????????? | | #### ## ??## ##????????????????????? | | ### ###? ### #####????????????????????? | | ####### ######????????????????????? | | ##### ## ########??????????????????? | | ### #### ####### ?????????????????? | +----------------------------------------------------+ Best States ------------- Heat Dissipation 25 Energy Generation 10 Energy Capacity 1050 Matter Stores 1000 Matter Capacity 1000 Sight Range 18 Terrain Scan Density 10 Evasion (%) 50 Targeting Accuracy 6 Recoil Reduction 2 Item Schematics ----------------- None Robot Schematics ------------------ None Fabricated ------------ Nothing Repaired ---------- Nothing Studied --------- None Alien Tech Used ----------------- None Achievements -------------- None Challenges ------------ None Game ------ Seed ColdRemoteNukerbomber Manual? 0 Play Time 00:12:24 Cumulative 994.9 hours Start 2026.07.15 @ 19:21:52 End 2026.07.15 @ 19:32:23 Sessions 1 Manual Loads 0 Difficulty Rogue Special Mode None Game No. 1133 Rogue 1133 Adventurer 0 Explorer 0 Win Type - Total 45 Types 22/1/9/3/2/1/3/2/1/1 Lore% 98 Gallery% 97 Achievement% 93 Wizard Run 0 Options --------- Layout 2 ASCII 0 Keyboard 0 Movement Mouse Keybinds 0 Fullscreen 2 Font 24/X11 Map View 50x49 Zoom Use 0% Tactical HUD 1 Map Filters NONE Filters NONE Steam 1 RUN: a7fe195b-787e-4db9-a838-e76d513c29c5